bitfinex/quotes_BTCUSD_20220204
["timestamp","ask_amount","ask_price","bid_price","bid_amount"]
[1644000209670,0.0003519,40454.0,40451.0,3.56299761]
[1644000209883,0.0003519,40461.0,40460.0,0.36228078]
[1644000210086,0.01827121,40461.0,40460.0,0.36228078]
[1644000210283,0.01827121,40461.0,40456.0,0.04]
[1644000210284,0.41827121,40461.0,40456.0,0.04]
[1644000210482,0.41827121,40461.0,40457.0,3.23026988]
[1644000210483,0.01862311,40461.0,40457.0,3.23026988]
[1644000210724,0.01862311,40461.0,40456.0,0.04]
[1644000210883,0.01862311,40461.0,40455.0,0.04]
[1644000211084,0.01827121,40461.0,40454.0,3.23026988]
[1644000211288,0.01908128,40461.0,40453.0,0.05]
[1644000211484,0.00081007,40461.0,40456.0,0.35770405]
[1644000212091,0.0003519,40461.0,40456.0,3.58797393]
[1644000212286,0.1347513,40463.0,40457.0,3.23026988]
[1644000212287,0.0003519,40462.0,40457.0,3.23026988]
[1644000212486,0.00081007,40461.0,40457.0,3.23026988]
[1644000212987,0.12073795,40455.0,40451.0,0.05]
[1644000213187,0.15223699,40460.0,40450.0,2.91966154]
[1644000213390,0.15188509,40460.0,40448.0,0.03751316]
[1644000213627,0.15188509,40460.0,40448.0,2.95793224]
[1644000213628,0.00075741,40455.0,40448.0,2.95793224]
[1644000213828,0.00075741,40455.0,40453.0,0.37443698]
[1644000214131,0.00075741,40455.0,40454.0,2.91966154]
[1644000214528,0.0003519,40457.0,40454.0,2.91966154]
[1644000214730,0.0003519,40458.0,40454.0,2.91966154]
[1644000214928,0.0003519,40459.0,40454.0,2.91966154]
[1644000215126,0.41591132,40460.0,40454.0,2.91966154]
[1644000215327,0.0003519,40459.0,40454.0,2.91966154]
[1644000215527,0.41657602,40460.0,40454.0,2.91966154]
[1644000215730,0.0003519,40459.0,40454.0,2.91966154]
[1644000215929,0.0003519,40459.0,40440.0,0.06414891]
[1644000215930,0.28682028,40455.0,40440.0,0.06414891]
[1644000216134,0.6677013,40454.0,40441.0,3.02833206]
[1644000216330,0.6677013,40454.0,40440.0,0.01414891]
[1644000216331,0.3306353,40454.0,40440.0,0.01414891]
[1644000216528,0.0188423,40445.0,40440.0,0.01414891]
[1644000216728,0.0494,40445.0,40440.0,0.01414891]
[1644000216930,0.05,40461.0,40440.0,0.01414891]
[1644000216931,0.1886,40463.0,40448.0,0.04034513]
[1644000217190,0.6604,40467.0,40455.0,0.05]
[1644000217392,0.6604,40467.0,40461.0,0.05]
[1644000217393,0.42,40467.0,40461.0,0.05]
[1644000217584,0.7959,40473.0,40462.0,0.05]
[1644000217585,0.6162,40473.0,40462.0,0.05]
[1644000217783,0.35187593,40463.0,40453.0,0.2812353]
[1644000217984,0.42,40473.0,40453.0,0.2812353]
[1644000217985,0.42,40473.0,40455.0,0.05]
[1644000218214,0.16052655,40463.0,40456.0,0.0494]
[1644000218383,0.061801,40471.0,40456.0,0.0494]
[1644000218582,0.00039514,40460.0,40456.0,0.0494]
[1644000218784,0.00039514,40460.0,40456.0,0.0994]
[1644000218985,0.00039514,40460.0,40459.0,1.79102911]
[1644000219183,0.00039514,40460.0,40456.0,0.05]
[1644000219387,0.11867667,40461.0,40456.0,0.05]
[1644000219586,0.37003905,40471.0,40456.0,0.05]
[1644000219587,0.00084744,40462.0,40456.0,0.05]
[1644000220185,0.00084744,40462.0,40457.0,0.27246731]
[1644000220385,0.00084744,40462.0,40457.0,2.98966821]
[1644000220586,0.16053928,40463.0,40458.0,2.7172009]
[1644000221036,0.16053928,40463.0,40459.0,2.7172009]
[1644000221037,0.00084744,40462.0,40459.0,2.7172009]
[1644000221236,0.00084744,40462.0,40460.0,2.7172009]
[1644000221435,0.00084744,40462.0,40456.0,0.05]
[1644000221640,0.00084744,40462.0,40456.0,2.7672009]
[1644000221939,0.34839233,40472.0,40460.0,1.39]
[1644000222136,0.00338927,40467.0,40460.0,1.39]
[1644000222341,0.00338927,40467.0,40461.0,0.30839193]
[1644000222541,0.00338927,40467.0,40461.0,0.05]
[1644000222935,0.15491749,40469.0,40461.0,0.05]
[1644000223336,0.00080212,40466.0,40461.0,0.05]
[1644000223535,0.00080212,40466.0,40460.0,0.1]
[1644000223737,0.00080212,40466.0,40458.0,0.05]
[1644000223935,0.00080212,40466.0,40458.0,2.67542623]
[1644000224135,0.15491749,40469.0,40458.0,2.77542623]
[1644000224335,0.15491749,40469.0,40458.0,2.77272223]
[1644000224535,0.15491749,40469.0,40459.0,0.25733546]
[1644000224536,0.00080214,40464.0,40459.0,0.25733546]
[1644000224783,0.00080214,40464.0,40459.0,2.90993992]
[1644000224975,0.00080214,40464.0,40459.0,3.00993992]
[1644000225178,0.00080214,40464.0,40460.0,2.65260446]
[1644000225375,0.75895356,40472.0,40460.0,2.65260446]
[1644000225776,0.00080214,40464.0,40460.0,2.65260446]
[1644000226176,0.00080214,40464.0,40460.0,2.70260446]
[1644000226476,0.3591724,40464.0,40460.0,2.65260446]
[1644000226678,0.35837026,40464.0,40453.0,0.1]
[1644000226878,0.35872245,40464.0,40453.0,0.05]
[1644000227179,0.35872245,40464.0,40454.0,2.79302239]
[1644000227379,0.35872245,40464.0,40450.0,0.05]
[1644000227380,0.11982606,40455.0,40450.0,0.05]
[1644000227576,0.0494,40463.0,40448.0,0.33897945]
[1644000227827,0.7355,40463.0,40448.0,0.33897945]
[1644000227976,0.31181581,40461.0,40448.0,0.33897945]
[1644000228176,0.00078538,40458.0,40448.0,0.33897945]
[1644000228375,0.44691193,40457.0,40448.0,2.20169974]
[1644000228626,0.00078538,40458.0,40449.0,2.25169974]
[1644000228825,0.00078538,40458.0,40450.0,2.20169974]
[1644000229027,0.36121581,40461.0,40451.0,2.20169974]
[1644000229226,0.36121581,40461.0,40452.0,2.20169974]
[1644000229428,0.0007854,40456.0,40453.0,2.20169974]
[1644000229627,0.0007854,40456.0,40454.0,2.20169974]
[1644000229829,0.0007854,40456.0,40455.0,2.20169974]
[1644000230228,0.33613342,40457.0,40455.0,2.20169974]
[1644000230431,0.33613342,40457.0,40456.0,2.22431623]
[1644000230630,0.00078495,40458.0,40450.0,2.22366506]
[1644000230829,0.00078495,40458.0,40450.0,2.22431623]
[1644000231230,0.00078495,40458.0,40451.0,0.05]
[1644000231430,0.0494,40461.0,40451.0,2.27431623]
[1644000231830,0.04975266,40461.0,40451.0,2.27431623]
[1644000232030,0.00075775,40457.0,40451.0,2.27431623]
[1644000232289,0.00075775,40457.0,40451.0,2.42431623]
[1644000232881,0.00035266,40459.0,40451.0,2.37431623]
[1644000233185,0.12688582,40460.0,40451.0,2.22431623]
[1644000233186,0.11418045,40453.0,40451.0,2.22431623]
[1644000233382,0.11418045,40453.0,40446.0,0.21226267]
[1644000233383,0.37357252,40452.0,40446.0,0.21226267]
[1644000233584,0.37357252,40452.0,40447.0,2.68028034]
[1644000233785,0.0494,40451.0,40446.0,0.00075795]
[1644000233984,0.04975266,40451.0,40445.0,0.3329104]
[1644000234222,0.04975266,40451.0,40446.0,0.0007607]
[1644000235183,0.04975266,40451.0,40444.0,0.21150472]
[1644000235385,0.04975266,40451.0,40446.0,0.00076069]
[1644000235791,0.04975266,40451.0,40446.0,0.05076069]
[1644000236428,0.04975266,40451.0,40444.0,0.21150472]
[1644000236726,0.04975266,40451.0,40446.0,0.00076069]
[1644000237533,0.04975266,40451.0,40444.0,0.21150472]
[1644000237727,0.04975266,40451.0,40446.0,0.00076069]
[1644000238828,0.04975266,40451.0,40445.0,0.05]
[1644000239027,0.00035266,40451.0,40446.0,0.00076041]
[1644000239228,0.37468549,40452.0,40446.0,0.00076041]
[1644000239428,0.00035266,40451.0,40446.0,0.00076041]
[1644000239627,0.37468549,40452.0,40446.0,0.00076041]
[1644000239878,0.3741833,40452.0,40446.0,0.00076041]
[1644000240079,0.3737757,40452.0,40445.0,0.05]
[1644000240280,0.37453601,40452.0,40446.0,0.00076042]
[1644000240881,0.0494,40451.0,40446.0,0.00076042]
[1644000241379,0.0494,40451.0,40446.0,0.00076057]
[1644000242477,0.0494,40451.0,40442.0,0.21219266]
[1644000242684,0.0494,40451.0,40446.0,0.00076057]
[1644000243279,0.16077141,40451.0,40446.0,0.00076057]
[1644000243529,0.16077141,40451.0,40444.0,0.05]
[1644000243928,0.16077141,40451.0,40442.0,0.31219266]
[1644000244128,0.16077141,40451.0,40442.0,3.0481613]
[1644000244329,0.16077141,40451.0,40443.0,2.73596864]
[1644000244529,0.16077141,40451.0,40443.0,2.9481613]
[1644000244829,0.16077141,40451.0,40443.0,3.0141613]
[1644000245029,0.40179249,40450.0,40443.0,3.05111367]
[1644000245231,0.40179249,40450.0,40444.0,2.77292101]
[1644000246229,0.40179249,40450.0,40445.0,0.00084756]
[1644000247380,0.40179249,40450.0,40445.0,0.00079852]
[1644000247680,0.39679249,40450.0,40445.0,0.00079852]
[1644000248381,0.39679249,40450.0,40443.0,0.066]
[1644000248582,0.39679249,40450.0,40445.0,0.00079852]
[1644000249579,0.39679249,40450.0,40443.0,0.066]
[1644000249779,0.39679249,40450.0,40445.0,0.00079852]
[1644000250881,0.39679249,40450.0,40444.0,0.05]
[1644000251135,0.39679249,40450.0,40445.0,0.00076969]
[1644000252130,0.39679249,40450.0,40444.0,0.033676]
[1644000252334,0.03263429,40448.0,40444.0,0.01736571]
[1644000252563,0.03263429,40448.0,40440.0,0.21219266]
[1644000252564,0.35244911,40443.0,40440.0,0.21219266]
[1644000252738,0.03263429,40441.0,40435.0,0.21219266]
[1644000252930,0.35244911,40443.0,40435.0,0.21219266]
[1644000252931,0.03263429,40436.0,40435.0,0.81219266]
[1644000253131,0.0494,40437.0,40434.0,0.21219266]
[1644000253737,0.0494,40437.0,40433.0,0.21219266]
[1644000254784,0.31467571,40437.0,40433.0,0.08380386]
[1644000254979,0.31467571,40437.0,40433.0,0.29599652]
[1644000254980,0.0494,40437.0,40433.0,0.29599652]
[1644000255179,0.0494,40437.0,40433.0,0.08380386]
[1644000255820,0.0494,40437.0,40433.0,0.083]
[1644000256079,0.0494,40437.0,40433.0,0.08380386]
[1644000256284,0.13442766,40436.0,40433.0,0.08380386]
[1644000256479,0.13442766,40436.0,40433.0,0.00080386]
[1644000256979,0.13442766,40436.0,40432.0,0.42]
[1644000257179,0.35615567,40439.0,40432.0,0.42080387]
[1644000257782,0.27669868,40440.0,40432.0,0.63299653]
[1644000257982,0.0494,40442.0,40433.0,0.21219266]
[1644000261349,0.1176739,40443.0,40437.0,0.00080029]
[1644000261746,0.1176739,40443.0,40435.0,0.57561735]
[1644000262494,0.1176739,40443.0,40435.0,0.66661735]
[1644000262694,0.1176739,40443.0,40435.0,0.61661735]
[1644000263395,0.1176739,40443.0,40437.0,0.0008284]
[1644000263796,0.337066,40442.0,40437.0,0.0008284]
[1644000264197,0.398909,40442.0,40433.0,0.21219266]
[1644000264396,0.061843,40442.0,40437.0,0.0008284]
[1644000264597,0.337066,40441.0,40437.0,0.0008284]
[1644000264997,0.061843,40442.0,40437.0,0.0008284]
[1644000265199,0.36806257,40440.0,40437.0,0.0008284]
[1644000265498,0.36806257,40440.0,40433.0,0.21219266]
[1644000265697,0.36806257,40440.0,40437.0,0.0008284]
[1644000266553,0.36806257,40440.0,40435.0,0.077]
[1644000266751,0.36806257,40440.0,40436.0,0.00079907]
[1644000267351,0.061843,40442.0,40436.0,0.00079907]
[1644000267752,0.061843,40442.0,40435.0,0.077]
[1644000267950,0.061843,40442.0,40437.0,0.00079906]
[1644000268351,0.4423894,40441.0,40437.0,0.00079906]
[1644000268751,0.70219024,40441.0,40437.0,0.00079906]
[1644000268951,0.70219024,40441.0,40434.0,0.21219266]
[1644000269153,0.70219024,40441.0,40437.0,0.00080104]
[1644000269154,0.4423894,40441.0,40437.0,0.00080104]
[1644000270205,0.061843,40442.0,40435.0,0.30419266]
[1644000270405,0.061843,40442.0,40437.0,0.00080104]
[1644000271305,0.1176739,40443.0,40438.0,0.3488202]
[1644000271509,0.061836,40445.0,40438.0,0.3988202]
[1644000271811,0.33326828,40449.0,40444.0,0.05]
[1644000271812,0.2096,40449.0,40444.0,0.05]
[1644000272007,0.01989479,40450.0,40444.0,0.26219266]
[1644000272405,0.00080078,40450.0,40444.0,0.26219266]
[1644000272604,0.02082352,40450.0,40444.0,0.26148649]
[1644000272806,0.00070617,40448.0,40444.0,0.26148649]
[1644000273227,0.26650612,40454.0,40444.0,0.26219266]
[1644000273407,0.556516,40463.0,40444.0,0.32400866]
[1644000273408,0.27062402,40458.0,40444.0,0.32400866]
[1644000273645,0.27062402,40458.0,40449.0,0.02082352]
[1644000273847,0.337066,40456.0,40449.0,0.02082352]
[1644000274349,0.15254219,40453.0,40449.0,0.02082352]
[1644000274745,0.15170524,40453.0,40449.0,0.02082352]
[1644000276647,0.15255183,40453.0,40449.0,0.02082352]
[1644000277599,0.15170524,40453.0,40449.0,0.02082352]
[1644000277799,0.21437383,40453.0,40446.0,0.00084674]
[1644000278700,0.21352724,40453.0,40444.0,0.05]
[1644000278999,0.21352724,40453.0,40446.0,0.00084673]
[1644000279200,0.41562417,40447.0,40446.0,0.00084673]
[1644000280002,0.41562417,40447.0,40444.0,0.05]
[1644000280200,0.41562417,40447.0,40444.0,0.05084673]
[1644000281045,0.41562417,40447.0,40444.0,0.05]
[1644000281448,0.00084656,40452.0,40444.0,0.05]
[1644000282251,0.21352724,40453.0,40444.0,0.05]
[1644000282451,0.15170524,40453.0,40446.0,0.00084671]
[1644000282650,0.40094002,40449.0,40446.0,0.00084671]
[1644000283450,0.40094002,40449.0,40444.0,0.30289657]
[1644000283656,0.40094002,40449.0,40444.0,0.05]
[1644000283851,0.40094002,40449.0,40445.0,0.00084672]
[1644000284053,0.00084658,40452.0,40445.0,0.46709833]
[1644000284452,0.00084658,40452.0,40445.0,0.25490567]
[1644000284654,0.00084658,40452.0,40447.0,0.05]
[1644000284897,0.15170524,40453.0,40447.0,0.05]
[1644000285094,0.43008082,40449.0,40447.0,0.05]
[1644000285296,0.43008082,40449.0,40446.0,0.00084672]
[1644000285895,0.43008082,40449.0,40443.0,0.31219266]
[1644000286094,0.43008082,40449.0,40445.0,0.00084672]
[1644000287096,0.43008082,40449.0,40444.0,0.21219266]
[1644000287399,0.43008082,40449.0,40445.0,0.00084672]
[1644000288196,0.11491902,40448.0,40445.0,0.00084672]
[1644000288401,0.43008082,40449.0,40443.0,0.36219266]
[1644000288645,0.43008082,40449.0,40445.0,0.00084672]
[1644000288646,0.061826,40449.0,40445.0,0.00084672]
[1644000289244,0.123652,40449.0,40445.0,0.00084672]
[1644000289446,0.27175796,40449.0,40445.0,0.00084672]
[1644000289645,0.27175796,40449.0,40443.0,0.26219266]
[1644000289845,0.27175796,40449.0,40445.0,0.00084672]
[1644000289846,0.27116324,40449.0,40445.0,0.00084672]
[1644000290245,0.12305728,40449.0,40445.0,0.00084672]
[1644000290846,0.12305728,40449.0,40443.0,0.26219266]
[1644000291047,0.12305728,40449.0,40445.0,0.00084672]
[1644000292053,0.12305728,40449.0,40445.0,0.05]
[1644000292305,0.06123128,40449.0,40445.0,0.05084672]
[1644000292495,0.06123128,40449.0,40446.0,0.05]
[1644000295201,0.11364292,40451.0,40448.0,0.05]
[1644000295601,0.11364292,40451.0,40449.0,0.05]
[1644000295801,0.45211111,40448.0,40446.0,0.00084673]
[1644000296852,0.11364292,40451.0,40443.0,0.36219266]
[1644000297051,0.11364292,40451.0,40445.0,0.00084672]
[1644000297251,0.061828,40450.0,40445.0,0.00084672]
[1644000297855,0.00084658,40452.0,40445.0,0.05084672]
[1644000298054,0.12364,40454.0,40446.0,0.25828477]
[1644000298254,0.91624318,40456.0,40445.0,0.05084672]
[1644000298454,0.00084658,40452.0,40445.0,0.05084672]
[1644000299155,0.1345514,40453.0,40445.0,0.05]
[1644000299456,0.92806218,40456.0,40445.0,0.26219266]
[1644000299655,0.86624218,40456.0,40450.0,0.46270662]
[1644000299897,0.337052,40455.0,40450.0,0.46270662]
[1644000301097,0.337052,40455.0,40447.0,0.05]
[1644000301300,1.0053925,40456.0,40447.0,2.69137135]
[1644000301499,0.66203111,40456.0,40447.0,2.69137135]
[1644000301701,0.263217,40459.0,40452.0,0.05]
[1644000301902,0.66513052,40462.0,40456.0,0.05]
[1644000302100,0.4947,40463.0,40456.0,0.05]
[1644000302101,0.337052,40461.0,40456.0,0.05]
[1644000302299,0.337052,40462.0,40456.0,0.05]
[1644000302498,0.34899551,40459.0,40456.0,0.05]
[1644000302699,0.46582337,40458.0,40456.0,0.05]
[1644000303302,0.47234728,40459.0,40449.0,0.46329266]
[1644000303303,0.2721734,40457.0,40449.0,0.46329266]
[1644000303554,0.14441948,40450.0,40446.0,0.21303947]
[1644000303755,0.2721734,40456.0,40446.0,2.7749155]
[1644000304055,0.24844102,40459.0,40446.0,2.77406869]
[1644000304254,0.29844102,40459.0,40446.0,2.77406869]
[1644000304554,0.00084656,40453.0,40446.0,2.7749154]
[1644000304854,0.00084656,40453.0,40446.0,2.98710806]
[1644000305054,0.19976266,40458.0,40447.0,1.2]
[1644000305356,0.46059144,40454.0,40447.0,2.70960797]
[1644000305555,0.13570708,40451.0,40447.0,2.70960797]
[1644000305759,0.00084657,40453.0,40447.0,2.70960797]
[1644000305955,0.00084657,40453.0,40448.0,0.05]
[1644000306160,0.00084657,40453.0,40448.0,2.70960797]
[1644000306357,0.30951704,40459.0,40447.0,2.70960797]
[1644000306757,0.35951704,40459.0,40447.0,2.70960797]
[1644000306957,0.1212022,40454.0,40447.0,2.70960797]
[1644000307396,0.1830162,40454.0,40447.0,2.70960797]
[1644000307595,0.1830162,40454.0,40447.0,2.75960797]
[1644000307797,0.1780162,40454.0,40448.0,0.00084668]
[1644000307995,0.1780162,40454.0,40448.0,2.72925619]
[1644000308196,0.36340012,40452.0,40448.0,2.67925619]
[1644000308405,0.061826,40452.0,40448.0,2.67925619]
[1644000308999,0.061826,40452.0,40448.0,2.67840951]
[1644000309196,0.15155976,40450.0,40449.0,2.15018632]
[1644000309398,0.30311952,40450.0,40449.0,2.15018632]
[1644000310599,0.30311952,40450.0,40449.0,2.79128048]
[1644000312350,0.30311952,40450.0,40449.0,2.89128048]
[1644000312551,0.10255138,40450.0,40449.0,2.89128048]
[1644000312751,0.1986,40468.0,40450.0,1.55]
[1644000312952,0.37418625,40465.0,40457.0,0.46304435]
[1644000313152,0.37418625,40465.0,40452.0,0.21224539]
[1644000313153,0.57616297,40463.0,40453.0,0.24894163]
[1644000313351,0.57616297,40463.0,40453.0,0.05]
[1644000313554,0.4148495,40461.0,40451.0,0.7388374]
[1644000313751,0.4148495,40461.0,40451.0,0.42734539]
[1644000314051,0.32044897,40454.0,40452.0,2.65906559]
[1644000314251,0.32044897,40454.0,40450.0,0.00079924]
[1644000314252,0.98858734,40454.0,40453.0,2.65906559]
[1644000314451,0.98858734,40454.0,40450.0,0.00079924]
[1644000314452,0.82996223,40454.0,40450.0,0.00079924]
[1644000314803,0.337052,40453.0,40450.0,0.00079924]
[1644000314998,0.337052,40453.0,40447.0,0.0210043]
[1644000315198,0.67996437,40454.0,40450.0,0.00079918]
[1644000315399,0.29731132,40453.0,40450.0,0.00079918]
[1644000315598,0.337052,40452.0,40450.0,0.00079918]
[1644000315800,0.387052,40452.0,40450.0,0.00079918]
[1644000315998,0.337052,40451.0,40450.0,0.00079918]
[1644000316200,0.337052,40451.0,40446.0,0.21224539]
[1644000316397,0.05,40452.0,40446.0,0.21224539]
[1644000316398,0.14719089,40449.0,40446.0,0.21224539]
[1644000316599,0.111821,40452.0,40446.0,2.41358595]
[1644000316797,0.061821,40452.0,40446.0,2.41358595]
[1644000316997,0.061821,40452.0,40446.0,2.46358595]
[1644000317198,0.12365119,40451.0,40447.0,2.20134056]
[1644000317398,0.061826,40450.0,40447.0,2.20134056]
[1644000317598,0.061826,40450.0,40447.0,2.20214239]
[1644000317999,0.111826,40450.0,40447.0,2.20214239]
[1644000318648,0.061826,40450.0,40447.0,2.20134056]
[1644000318850,0.061826,40450.0,40448.0,2.65959751]
[1644000319047,0.061826,40450.0,40449.0,2.65959751]
[1644000320049,0.061826,40450.0,40447.0,0.00075723]
[1644000320249,0.061826,40450.0,40447.0,2.66035474]
[1644000320850,0.111826,40450.0,40447.0,2.66035474]
[1644000321049,0.111826,40450.0,40447.0,2.65959751]
[1644000321250,0.111826,40450.0,40448.0,2.61508384]
[1644000321455,0.111826,40450.0,40449.0,2.61508384]
[1644000321649,0.061826,40450.0,40449.0,2.61508384]
[1644000322498,0.061826,40450.0,40449.0,2.72783115]
[1644000324101,0.061826,40450.0,40448.0,2.72783115]
[1644000324900,0.061826,40450.0,40449.0,2.38519181]
[1644000325100,0.061826,40450.0,40448.0,2.38519181]
[1644000326166,0.061826,40450.0,40437.0,0.91773565]
[1644000326167,2.31185142,40449.0,40430.0,0.42438533]
[1644000326362,2.31185142,40449.0,40433.0,0.2654434]
[1644000326363,0.05,40435.0,40433.0,0.2654434]
[1644000326564,0.8,40433.0,40422.0,0.31848717]
[1644000326865,0.8,40433.0,40419.0,0.26542199]
[1644000326866,0.09970236,40424.0,40419.0,0.26542199]
[1644000327059,0.85277332,40423.0,40416.0,0.27542199]
[1644000327259,0.85277332,40423.0,40416.0,0.01]
[1644000327260,0.31435972,40417.0,40416.0,0.01]
[1644000327460,1.1,40416.0,40407.0,0.37159078]
[1644000327659,1.1,40416.0,40402.0,0.26542199]
[1644000327660,0.337052,40415.0,40402.0,0.26542199]
[1644000327859,0.337052,40414.0,40402.0,0.26542199]
[1644000328260,0.061895,40405.0,40403.0,0.46782673]
[1644000328459,0.061895,40405.0,40401.0,0.01]
[1644000328759,0.111895,40405.0,40401.0,0.01]
[1644000328958,0.11122463,40405.0,40401.0,0.01]
[1644000329159,0.337052,40404.0,40401.0,0.01]
[1644000329561,0.337052,40404.0,40402.0,0.05]
[1644000330004,0.04932963,40405.0,40402.0,0.05]
[1644000330203,0.04932963,40405.0,40401.0,0.01]
[1644000330403,0.198,40408.0,40401.0,0.06]
[1644000330603,0.32095368,40408.0,40401.0,0.06]
[1644000330803,0.32095368,40408.0,40401.0,0.01]
[1644000330804,0.337052,40407.0,40401.0,0.01]
[1644000331005,0.33727757,40405.0,40402.0,0.00080369]
[1644000331204,0.337052,40404.0,40401.0,0.01]
[1644000331406,0.337052,40404.0,40382.0,0.41837934]
[1644000331407,0.1451239,40392.0,40382.0,0.41837934]
[1644000331604,0.05,40392.0,40382.0,2.81356755]
[1644000331805,0.05,40392.0,40382.0,0.045]
[1644000332005,0.05,40392.0,40381.0,0.01]
[1644000332006,0.06192271,40390.0,40386.0,0.40099975]
[1644000332603,0.19437716,40391.0,40386.0,0.40099975]
[1644000332804,0.0683015,40390.0,40386.0,0.40099975]
[1644000333206,0.1183015,40390.0,40386.0,0.40099975]
[1644000333407,0.12384908,40393.0,40386.0,0.40099975]
[1644000333654,0.18576611,40393.0,40386.0,0.40099975]
[1644000333861,0.18576611,40393.0,40388.0,0.05]
[1644000334053,0.337075,40392.0,40388.0,0.05]
[1644000334255,0.47467305,40392.0,40388.0,0.05]
[1644000334452,0.337075,40392.0,40388.0,0.05]
[1644000334853,0.337075,40392.0,40388.0,0.00084312]
[1644000335053,0.337075,40392.0,40388.0,0.05084312]
[1644000335255,0.387075,40392.0,40388.0,0.05084312]
[1644000335454,0.337075,40391.0,40388.0,0.00084312]
[1644000335655,0.00084291,40398.0,40390.0,0.05]
[1644000335854,0.773,40416.0,40397.0,0.35]
[1644000335855,0.2879839,40406.0,40397.0,0.35]
[1644000336055,0.12380497,40408.0,40391.0,0.05]
[1644000336057,0.34532444,40403.0,40391.0,0.05]
[1644000336254,0.45880537,40396.0,40388.0,2.67668037]
[1644000336453,0.33825685,40398.0,40388.0,2.61672566]
[1644000336454,0.0008429,40398.0,40388.0,2.61672566]
[1644000336654,0.13419413,40397.0,40388.0,2.66672566]
[1644000336853,0.0008429,40398.0,40388.0,2.66672566]
[1644000337054,0.06190889,40400.0,40388.0,2.61672566]
[1644000337304,0.06190889,40400.0,40386.0,0.40099975]
[1644000337305,0.00084293,40398.0,40392.0,0.05]
[1644000337498,0.00084293,40398.0,40394.0,0.40771304]
[1644000337697,0.00084293,40398.0,40395.0,2.61672566]
[1644000337896,0.00084293,40398.0,40390.0,0.00084309]
[1644000338096,0.337075,40397.0,40390.0,2.61756875]
[1644000338296,0.11190889,40400.0,40390.0,2.61672566]
[1644000338297,0.06190889,40400.0,40390.0,2.61672566]
[1644000338498,0.00084295,40398.0,40392.0,0.00084307]
[1644000338698,0.00084295,40398.0,40392.0,2.64810014]
[1644000339300,0.00084295,40398.0,40397.0,1.6]
[1644000339604,0.24760956,40408.0,40397.0,1.6]
[1644000339606,0.48397701,40413.0,40398.0,0.273717]
[1644000339803,0.48397701,40413.0,40409.0,0.05]
[1644000339804,0.337075,40412.0,40409.0,0.05]
[1644000340001,0.17012569,40413.0,40409.0,0.05]
[1644000340002,0.337075,40411.0,40409.0,0.05]
[1644000340202,0.2879839,40417.0,40410.0,0.42193585]
[1644000340399,0.2879839,40417.0,40414.0,0.05]
[1644000340400,0.337075,40416.0,40414.0,0.05]
[1644000340801,0.337075,40416.0,40409.0,0.05]
[1644000340802,0.45741847,40416.0,40409.0,0.05]
[1644000341351,0.62794181,40416.0,40409.0,0.14]
[1644000341548,0.45781612,40416.0,40409.0,0.14]
[1644000341750,0.17052334,40416.0,40409.0,0.14]
[1644000341950,0.17012569,40417.0,40409.0,0.14]
[1644000342149,0.17012569,40419.0,40409.0,0.14]
[1644000342353,0.00039765,40415.0,40409.0,0.14]
[1644000342650,0.00039765,40415.0,40409.0,0.05]
[1644000342849,0.13210087,40413.0,40409.0,0.05]
[1644000343449,0.00084311,40413.0,40409.0,0.05]
[1644000344248,0.46110981,40413.0,40409.0,0.05]
[1644000344448,0.60984799,40413.0,40409.0,0.05]
[1644000344648,0.00084311,40413.0,40409.0,0.05]
[1644000344899,0.00084311,40413.0,40409.0,0.129]
[1644000345095,0.00084311,40413.0,40412.0,0.05]
[1644000345494,0.39129008,40419.0,40412.0,0.05]
[1644000345695,0.48915246,40415.0,40412.0,0.05]
[1644000345895,0.337075,40414.0,40412.0,0.05]
[1644000348399,0.00084308,40415.0,40409.0,0.05]
[1644000349046,0.06188068,40419.0,40409.0,0.05]
[1644000349047,0.15032927,40418.0,40409.0,0.05]
[1644000349250,0.337075,40417.0,40409.0,0.05]
[1644000349450,0.0008431,40414.0,40409.0,0.05]
[1644000349848,0.1309545,40411.0,40403.0,0.05]
[1644000350052,0.0008431,40414.0,40401.0,2.69541092]
[1644000350349,0.05,40419.0,40413.0,0.05]
[1644000350550,0.337075,40418.0,40413.0,0.05]
[1644000350748,0.00084315,40410.0,40403.0,0.05]
[1644000350951,0.00084315,40410.0,40409.0,1.873627]
[1644000351150,0.00084315,40410.0,40409.0,2.25638953]
[1644000351455,0.00084315,40410.0,40409.0,0.80638953]
[1644000351652,0.2000367,40423.0,40409.0,0.53276253]
[1644000351849,0.00082591,40412.0,40410.0,0.05]
[1644000352049,0.35653228,40418.0,40412.0,0.08317409]
[1644000352714,0.337075,40417.0,40412.0,0.08317409]
[1644000352914,0.337075,40417.0,40416.0,0.05]
[1644000353112,0.44337845,40423.0,40416.0,0.05]
[1644000353312,0.44337845,40423.0,40418.0,0.05]
[1644000353313,0.337075,40422.0,40418.0,0.05]
[1644000353513,0.387075,40422.0,40418.0,0.05]
[1644000353715,0.337075,40420.0,40409.0,0.38232425]
[1644000353915,0.08300621,40423.0,40419.0,0.05]
[1644000354116,0.4519434,40423.0,40422.0,0.05]
[1644000354314,0.92575514,40423.0,40422.0,0.05]
[1644000354916,1.28161725,40423.0,40422.0,0.05]
[1644000356145,0.94454225,40423.0,40417.0,0.05]
[1644000356345,0.398947,40422.0,40417.0,0.05]
[1644000356745,0.39979001,40422.0,40417.0,0.05]
[1644000357346,0.061871,40423.0,40422.0,0.7]
[1644000357549,0.235611,40427.0,40422.0,0.7]
[1644000357550,0.00337152,40428.0,40422.0,0.999607]
[1644000357749,0.0194059,40435.0,40427.0,0.05]
[1644000357952,0.0194059,40435.0,40434.0,0.05]
[1644000358148,0.0189563,40430.0,40422.0,0.8]
[1644000358347,0.0189563,40430.0,40427.0,0.41940628]
[1644000358549,0.0189563,40430.0,40422.0,2.7087921]
[1644000358550,0.0189563,40430.0,40423.0,2.66771407]
[1644000358747,0.0189563,40430.0,40424.0,0.299581]
[1644000358948,0.0189563,40430.0,40425.0,0.299575]
[1644000359149,0.06,40439.0,40427.0,1.55]
[1644000359350,0.00158452,40435.0,40429.0,1.55]
[1644000359549,0.00158452,40435.0,40430.0,2.96724407]
[1644000359807,8.452e-05,40435.0,40432.0,0.299513]
[1644000360001,8.452e-05,40435.0,40432.0,2.96722707]
[1644000360202,8.452e-05,40435.0,40434.0,1.93911056]
[1644000360401,0.01,40439.0,40434.0,5.00632063]
[1644000360604,0.01,40439.0,40435.0,2.90870124]